bitfinex/quotes_BTCUSD_20250901
["timestamp","ask_amount","ask_price","bid_price","bid_amount"]
[1756694647948,0.18068378,107710.0,107700.0,0.25262758]
[1756694648157,0.18068378,107710.0,107700.0,0.28052858]
[1756694649323,0.18068378,107710.0,107700.0,0.12092858]
[1756694649523,0.18068378,107710.0,107700.0,0.28052858]
[1756694649902,0.51623742,107710.0,107700.0,0.12092858]
[1756694650102,0.51623742,107710.0,107700.0,0.28048858]
[1756694650351,0.51723742,107710.0,107700.0,0.25258758]
[1756694651028,0.18168378,107710.0,107700.0,0.25258758]
[1756694651356,0.51823742,107710.0,107700.0,0.09302758]
[1756694651563,0.51823742,107710.0,107700.0,4.757e-05]
[1756694651773,0.51823742,107710.0,107700.0,0.15960757]
[1756694652295,0.51723742,107710.0,107700.0,0.15960757]
[1756694652702,0.51823742,107710.0,107700.0,0.15960757]
[1756694653297,0.51723742,107710.0,107700.0,0.15960757]
[1756694653448,0.51823742,107710.0,107700.0,0.15960757]
[1756694653907,0.18268378,107710.0,107700.0,0.15960757]
[1756694654110,0.51823742,107710.0,107700.0,0.15960757]
[1756694654320,0.18268378,107710.0,107700.0,0.15960757]
[1756694654522,0.18268378,107710.0,107700.0,0.25258758]
[1756694654731,0.18168378,107710.0,107700.0,0.25258758]
[1756694655150,0.18268378,107710.0,107700.0,0.25258758]
[1756694655321,0.18168378,107710.0,107700.0,0.25258758]
[1756694655776,0.18268378,107710.0,107700.0,0.25258758]
[1756694657877,0.18268378,107710.0,107700.0,0.78814122]
[1756694658374,0.18268378,107710.0,107700.0,0.48048658]
[1756694659514,0.18268378,107710.0,107700.0,0.32092658]
[1756694659719,0.18268378,107710.0,107700.0,0.48040658]
[1756694660557,0.18268378,107710.0,107700.0,0.32092658]
[1756694660762,0.51823742,107710.0,107700.0,0.45250758]
[1756694660965,0.18268378,107710.0,107700.0,0.45250758]
[1756694662601,0.18268378,107710.0,107700.0,0.48040858]
[1756694663693,0.18268378,107710.0,107700.0,0.32092858]
[1756694663897,0.51823742,107710.0,107700.0,0.48040858]
[1756694664630,0.51823742,107710.0,107700.0,0.45250758]
[1756694665944,0.18268378,107710.0,107700.0,0.45250758]
[1756694667440,0.18268378,107710.0,107700.0,0.29302758]
[1756694667647,0.18268378,107710.0,107700.0,0.45246758]
[1756694668999,0.18268378,107710.0,107700.0,0.45242758]
[1756694671864,0.51823742,107710.0,107700.0,0.45242758]
[1756694673105,0.18268378,107710.0,107700.0,0.45242758]
[1756694673288,0.18268378,107710.0,107700.0,0.45238758]
[1756694675171,0.18268378,107710.0,107700.0,0.29302758]
[1756694675386,0.51823742,107710.0,107700.0,0.20004757]
[1756694675605,0.67759742,107710.0,107700.0,4.757e-05]
[1756694676165,0.70550142,107710.0,107700.0,4.757e-05]
[1756694677534,0.36994778,107710.0,107700.0,4.757e-05]
[1756694677756,0.70550142,107710.0,107700.0,4.757e-05]
[1756694679612,0.54614142,107710.0,107700.0,4.757e-05]
[1756694680643,0.51823742,107710.0,107700.0,4.757e-05]
[1756694683579,0.51823742,107710.0,107700.0,0.15932757]
[1756694683789,0.51823742,107710.0,107700.0,4.757e-05]
[1756694683996,0.51823742,107710.0,107700.0,0.15932757]
[1756694684189,0.67751742,107710.0,107700.0,0.15932757]
[1756694684392,0.67751742,107710.0,107700.0,4.757e-05]
[1756694684734,0.70442142,107710.0,107700.0,4.757e-05]
[1756694685139,0.70342142,107710.0,107700.0,4.757e-05]
[1756694685593,0.54614142,107710.0,107700.0,4.757e-05]
[1756694685805,0.70738142,107710.0,107700.0,4.757e-05]
[1756694686376,0.54814142,107710.0,107700.0,4.757e-05]
[1756694686577,0.70738142,107710.0,107700.0,4.757e-05]
[1756694686996,0.70538142,107710.0,107700.0,4.757e-05]
[1756694687205,0.70438142,107710.0,107700.0,4.757e-05]
[1756694687408,0.20958778,107710.0,107700.0,0.09534884]
[1756694687623,0.21058778,107710.0,107700.0,0.09534884]
[1756694688047,0.18268378,107710.0,107700.0,0.09534884]
[1756694688248,0.18168378,107710.0,107700.0,0.09534884]
[1756694688854,0.18168378,107710.0,107700.0,0.09302758]
[1756694689055,0.18068378,107710.0,107700.0,0.25226758]
[1756694690599,0.18068378,107710.0,107700.0,0.58782122]
[1756694690810,0.18068378,107710.0,107700.0,0.25226758]
[1756694694223,0.18068378,107710.0,107700.0,0.28016658]
[1756694695069,0.51623742,107710.0,107700.0,0.12092658]
[1756694695271,0.51623742,107710.0,107700.0,0.25218758]
[1756694695920,0.18068378,107710.0,107700.0,0.25218758]
[1756694700033,0.18068378,107710.0,107700.0,0.09302758]
[1756694700236,0.18068378,107710.0,107700.0,0.25446884]
[1756694700517,0.18068378,107710.0,107700.0,0.25214758]
[1756694701425,0.18068378,107710.0,107700.0,0.92340224]
[1756694701598,0.16557771,107710.0,107700.0,0.95130024]
[1756694702002,0.16557771,107710.0,107700.0,0.60647922]
[1756694702220,0.16557771,107710.0,107700.0,0.76559922]
[1756694702416,0.16557771,107710.0,107700.0,0.95130024]
[1756694702657,0.16557771,107710.0,107700.0,0.43004558]
[1756694702867,0.16557771,107710.0,107700.0,0.27092558]
[1756694703047,0.16557771,107710.0,107700.0,0.47092558]
[1756694703276,0.16557771,107710.0,107700.0,0.63000558]
[1756694703690,0.16557771,107710.0,107700.0,0.43000558]
[1756694703905,0.16557771,107710.0,107700.0,0.63000558]
[1756694705911,0.16557771,107710.0,107700.0,1.15126024]
[1756694706118,0.18566654,107720.0,107700.0,1.15126024]
[1756694706342,0.18566654,107720.0,107710.0,0.16666105]
[1756694706836,0.18566654,107720.0,107710.0,0.35234483]
[1756694707032,0.18566654,107720.0,107710.0,0.68557743]
[1756694707255,0.18666654,107720.0,107710.0,0.68557743]
[1756694707420,0.001,107720.0,107710.0,0.68557743]
[1756694707621,0.001,107720.0,107710.0,1.05509625]
[1756694707820,0.16063753,107740.0,107730.0,0.2]
[1756694708063,0.16063753,107740.0,107730.0,0.54187272]
[1756694708281,0.16063753,107740.0,107730.0,0.72752202]
[1756694708457,0.16063753,107740.0,107730.0,1.09096666]
[1756694708662,0.16063753,107740.0,107730.0,0.90531736]
[1756694709245,0.16063753,107740.0,107730.0,1.09096666]
[1756694709452,0.16063753,107740.0,107730.0,0.90531736]
[1756694709662,0.16063753,107740.0,107730.0,1.09096666]
[1756694710319,0.16063753,107740.0,107730.0,1.10011684]
[1756694710527,0.16063753,107740.0,107730.0,0.95662744]
[1756694711138,0.16063753,107740.0,107730.0,1.15662744]
[1756694712210,0.16063753,107740.0,107730.0,0.99758744]
[1756694712413,0.16063753,107740.0,107730.0,0.8210338]
[1756694712869,0.16063753,107740.0,107730.0,0.6198739]
[1756694713092,0.16063753,107740.0,107730.0,0.4198739]
[1756694713531,0.16063753,107740.0,107730.0,0.5788739]
[1756694714435,0.16063753,107740.0,107730.0,0.4198739]
[1756694714635,0.16063753,107740.0,107730.0,0.5788339]
[1756694714838,0.16063753,107740.0,107730.0,0.4198739]
[1756694715075,0.16063753,107740.0,107730.0,0.5788339]
[1756694717112,0.16063753,107740.0,107730.0,0.7644832]
[1756694717657,0.16063753,107740.0,107730.0,0.5788339]
[1756694717991,0.16063753,107740.0,107730.0,0.7644832]
[1756694718613,0.16063753,107740.0,107730.0,0.5788339]
[1756694720036,0.16063753,107740.0,107730.0,0.4198739]
[1756694720228,0.16063753,107740.0,107730.0,0.5787939]
[1756694720667,0.16063753,107740.0,107730.0,0.61978722]
[1756694721887,0.16063753,107740.0,107730.0,0.80543652]
[1756694722121,0.16063753,107740.0,107730.0,1.14099016]
[1756694722456,0.46063753,107740.0,107730.0,1.14099016]
[1756694723282,0.45135593,107740.0,107730.0,1.14099016]
[1756694725152,0.45135593,107740.0,107730.0,1.34099016]
[1756694725390,0.3,107740.0,107730.0,1.34099016]
[1756694725589,0.3,107740.0,107730.0,1.70192898]
[1756694726248,0.3,107740.0,107730.0,2.03748262]
[1756694726490,0.3,107740.0,107730.0,2.04606262]
[1756694727159,0.3,107740.0,107730.0,2.04706262]
[1756694727790,0.3,107740.0,107730.0,2.05006262]
[1756694728256,0.3,107740.0,107730.0,2.04706262]
[1756694728443,0.3,107740.0,107730.0,1.88814262]
[1756694728687,0.3,107740.0,107730.0,2.04698262]
[1756694728913,0.3,107740.0,107730.0,2.04598262]
[1756694729341,0.3,107740.0,107730.0,2.44598262]
[1756694729488,0.3,107740.0,107730.0,2.45298262]
[1756694733436,0.3,107740.0,107730.0,2.50298262]
[1756694734557,0.3,107740.0,107730.0,1.83183534]
[1756694734742,0.3,107740.0,107730.0,2.50294262]
[1756694735546,0.3,107740.0,107730.0,2.34414262]
[1756694735758,0.3,107740.0,107730.0,2.30294262]
[1756694736128,0.3,107740.0,107730.0,2.25294262]
[1756694736341,0.3,107740.0,107730.0,2.30294262]
[1756694736894,0.3,107740.0,107730.0,2.25294262]
[1756694737940,0.3,107740.0,107730.0,2.19194262]
[1756694738151,0.48563207,107740.0,107730.0,0.45795451]
[1756694738426,0.82118571,107740.0,107730.0,0.61671451]
[1756694738588,0.48563207,107740.0,107730.0,0.61671451]
[1756694739038,0.48563207,107740.0,107730.0,0.60756433]
[1756694739262,0.82118571,107740.0,107730.0,0.20781101]
[1756694739581,0.82118571,107740.0,107730.0,0.33168001]
[1756694739796,0.82118571,107740.0,107730.0,0.17292001]
[1756694740011,0.82118571,107740.0,107730.0,0.33468001]
[1756694740252,0.82118571,107740.0,107730.0,0.01158]
[1756694740473,0.82118571,107740.0,107730.0,0.17034]
[1756694740698,1.16118571,107740.0,107730.0,0.01158]
[1756694740935,1.16118571,107740.0,107730.0,0.003]
[1756694741372,0.82563207,107740.0,107730.0,0.003]
[1756694741585,1.31994571,107740.0,107730.0,0.002]
[1756694742237,0.1856493,107730.0,107720.0,0.15876]
[1756694742446,0.52120294,107730.0,107720.0,0.15876]
[1756694743228,0.52120294,107730.0,107710.0,0.07136]
[1756694743229,0.18566654,107720.0,107710.0,0.07136]
[1756694743431,0.52122018,107720.0,107710.0,0.2387]
[1756694743654,0.18566654,107720.0,107710.0,0.2387]
[1756694744061,0.52122018,107720.0,107710.0,0.2387]
[1756694744490,0.52122018,107720.0,107710.0,0.2397]
[1756694744680,0.52122018,107720.0,107710.0,0.16834]
[1756694745761,0.52122018,107720.0,107710.0,0.17034]
[1756694746994,0.18566654,107720.0,107710.0,0.17034]
[1756694748896,0.18566654,107720.0,107710.0,0.16176]
[1756694749548,0.18566654,107720.0,107710.0,0.16076]
[1756694749729,0.52122018,107720.0,107710.0,0.15876]
[1756694750020,0.52222018,107720.0,107710.0,0.15876]
[1756694750359,0.52122018,107720.0,107710.0,0.15876]
[1756694750760,0.52222018,107720.0,107710.0,0.15876]
[1756694751571,5.52222018,107720.0,107710.0,0.15876]
[1756694752356,5.53146943,107720.0,107710.0,0.15876]
[1756694752761,0.18568378,107710.0,107700.0,4.757e-05]
[1756694752978,0.52123742,107710.0,107700.0,0.15884757]
[1756694753192,0.52123742,107710.0,107700.0,4.757e-05]
[1756694753408,0.52123742,107710.0,107700.0,0.15880757]
[1756694753409,0.18568378,107710.0,107700.0,0.15880757]
[1756694753653,0.52123742,107710.0,107700.0,0.15880757]
[1756694754033,0.52123742,107710.0,107700.0,0.15980757]
[1756694754258,0.18568378,107710.0,107700.0,0.15980757]
[1756694754443,0.52123742,107710.0,107700.0,0.15980757]
[1756694754887,0.27589345,107700.0,107690.0,0.28985271]
[1756694755091,0.61149471,107700.0,107690.0,0.55021272]
[1756694756287,0.61149471,107700.0,107690.0,0.55221272]
[1756694757326,0.61149471,107700.0,107690.0,0.55321272]
[1756694758110,0.27594107,107700.0,107690.0,0.55321272]
[1756694758672,0.27594107,107700.0,107690.0,0.54463272]
[1756694759058,0.27594107,107700.0,107690.0,0.54263272]
[1756694759500,0.27594107,107700.0,107690.0,0.54163272]
[1756694760051,0.27594107,107700.0,107690.0,0.56953372]
[1756694760261,0.27594107,107700.0,107690.0,0.57911372]
[1756694761089,0.27594107,107700.0,107690.0,0.58011372]
[1756694762096,0.61149471,107700.0,107690.0,0.56158101]
[1756694762321,0.61149471,107700.0,107690.0,0.58007372]
[1756694762539,0.27594107,107700.0,107690.0,0.58007372]
[1756694762813,0.27594107,107700.0,107690.0,0.55217272]
[1756694764886,0.61149471,107700.0,107690.0,0.55217272]
[1756694765085,0.61149471,107700.0,107690.0,0.39341272]
[1756694765299,0.61149471,107700.0,107690.0,0.53368001]
[1756694765492,0.61149471,107700.0,107690.0,0.52510001]
[1756694766091,0.61149471,107700.0,107690.0,0.52410001]
[1756694766371,0.61249471,107700.0,107690.0,0.52410001]
[1756694766584,0.27694107,107700.0,107690.0,0.52310001]
[1756694766978,0.27594107,107700.0,107690.0,0.52310001]
[1756694767180,0.27594107,107700.0,107690.0,0.53268001]
[1756694767597,0.27594107,107700.0,107690.0,0.52410001]
[1756694768759,0.27694107,107700.0,107690.0,0.85865365]
[1756694768965,0.27594107,107700.0,107690.0,0.85865365]
[1756694769158,0.27594107,107700.0,107690.0,0.52310001]
[1756694769361,0.27594107,107700.0,107690.0,0.86823365]
[1756694769919,0.09024005,107700.0,107690.0,1.25395191]
[1756694770319,0.27594107,107700.0,107690.0,1.06923365]
[1756694770752,0.27594107,107700.0,107690.0,1.25495191]
[1756694771494,0.27594107,107700.0,107690.0,1.06923365]
[1756694771715,0.27594107,107700.0,107690.0,0.86923365]
[1756694771919,0.27594107,107700.0,107690.0,1.05495191]
[1756694772540,0.09024005,107700.0,107690.0,1.05495191]
[1756694772750,0.27594107,107700.0,107690.0,1.05495191]
[1756694772957,0.09024005,107700.0,107690.0,1.05495191]
[1756694773165,0.08814605,107700.0,107690.0,1.05495191]
[1756694773375,0.08814605,107700.0,107690.0,1.41589073]
[1756694774408,0.27384707,107700.0,107690.0,1.41589073]
[1756694774617,0.27384707,107700.0,107690.0,1.21589073]
[1756694774789,0.27384707,107700.0,107690.0,1.41589073]
[1756694775062,0.27384707,107700.0,107690.0,1.25713073]
[1756694775273,0.27384707,107700.0,107690.0,1.41589073]
[1756694775587,0.27384707,107700.0,107690.0,1.21589073]
[1756694775804,0.27384707,107700.0,107690.0,1.41589073]
[1756694776182,0.27384707,107700.0,107690.0,1.05047365]
[1756694776415,0.27384707,107700.0,107690.0,0.87368001]
[1756694776556,0.27384707,107700.0,107690.0,1.20923365]
[1756694776969,0.27384707,107700.0,107690.0,0.85047365]
[1756694777164,0.27384707,107700.0,107690.0,1.00923365]
[1756694777370,0.27384707,107700.0,107690.0,1.20923365]
[1756694777572,0.27384707,107700.0,107690.0,1.39495191]
[1756694777769,0.27384707,107700.0,107690.0,1.20923365]
[1756694778766,0.27384707,107700.0,107690.0,1.39495191]
[1756694778944,0.27384707,107700.0,107690.0,1.20923365]
[1756694779936,0.27384707,107700.0,107690.0,1.23713265]
[1756694780522,0.27384707,107700.0,107690.0,1.42285091]
[1756694780732,0.27384707,107700.0,107690.0,1.23713265]
[1756694780942,0.27384707,107700.0,107690.0,1.23709265]
[1756694781368,0.27384707,107700.0,107690.0,0.73837265]
[1756694781584,0.65535387,107700.0,107690.0,0.26228001]
[1756694781820,0.60940071,107700.0,107690.0,0.26228001]
[1756694782041,0.27384707,107700.0,107690.0,0.16072]
[1756694782256,0.60940071,107700.0,107690.0,0.15972]
[1756694782474,0.61040071,107700.0,107690.0,0.15972]
[1756694782703,0.18571826,107690.0,107680.0,0.13981626]
[1756694782926,0.5212719,107690.0,107680.0,0.29853626]
[1756694783851,0.18571826,107690.0,107680.0,0.29853626]
[1756694784058,0.5212719,107690.0,107680.0,0.29853626]
[1756694785902,0.18671826,107690.0,107680.0,0.29853626]
[1756694786102,0.5222719,107690.0,107680.0,0.29853626]
[1756694786428,0.18671826,107690.0,107680.0,0.29853626]
[1756694786629,0.18971826,107690.0,107680.0,0.29853626]
[1756694787239,0.18871826,107690.0,107680.0,0.29853626]
[1756694787603,0.19071826,107690.0,107680.0,0.29853626]
[1756694788008,0.18871826,107690.0,107680.0,0.29853626]
[1756694788421,0.18571826,107690.0,107680.0,0.29853626]
[1756694788621,0.18671826,107690.0,107680.0,0.29853626]
[1756694789062,0.18771826,107690.0,107680.0,0.29853626]
[1756694790260,0.18671826,107690.0,107680.0,0.29853626]
[1756694790793,0.18571826,107690.0,107680.0,0.29853626]
[1756694791234,0.5212719,107690.0,107680.0,0.13981626]
[1756694791460,0.18571826,107690.0,107680.0,0.13981626]
[1756694791659,0.34547826,107690.0,107680.0,0.13981626]
[1756694791862,0.34647826,107690.0,107680.0,0.13981626]
[1756694792322,0.34547826,107690.0,107680.0,0.13981626]
[1756694792531,0.34447826,107690.0,107680.0,0.13981626]
[1756694792879,0.34547826,107690.0,107680.0,0.13981626]
[1756694793089,0.35492784,107690.0,107680.0,0.13981626]
[1756694793287,0.69048148,107690.0,107680.0,0.13981626]
[1756694793493,0.72791773,107690.0,107680.0,0.13981626]
[1756694793691,0.69148148,107690.0,107680.0,0.13981626]
[1756694795133,1.0524203,107690.0,107680.0,0.13981626]
[1756694797054,0.8936603,107690.0,107680.0,0.13981626]
[1756694797259,1.0524203,107690.0,107680.0,0.13981626]
[1756694800384,0.55810666,107690.0,107680.0,0.13981626]
[1756694800522,1.0524203,107690.0,107680.0,0.13981626]
[1756694802341,1.03148148,107690.0,107680.0,0.13981626]
[1756694803197,1.04549991,107690.0,107680.0,0.13981626]
[1756694803566,1.06643873,107690.0,107680.0,0.13981626]
[1756694804230,1.06543873,107690.0,107680.0,0.13981626]
[1756694804418,0.71714666,107690.0,107680.0,0.13981626]
[1756694804632,0.71614666,107690.0,107680.0,0.13981626]
[1756694804844,1.0557003,107690.0,107680.0,0.13981626]
[1756694805030,1.0587003,107690.0,107680.0,0.13981626]
[1756694806646,0.72314666,107690.0,107680.0,0.13981626]
[1756694806859,1.0587003,107690.0,107680.0,0.13981626]
[1756694807264,1.14699662,107690.0,107680.0,1e-08]
[1756694807957,1.0587003,107690.0,107680.0,1e-08]
[1756694808282,1.15168031,107690.0,107680.0,1e-08]
[1756694808643,0.81616667,107690.0,107680.0,1e-08]
[1756694808841,1.15172031,107690.0,107680.0,1e-08]
[1756694809264,0.65608667,107690.0,107680.0,1e-08]
[1756694809471,0.54216784,107690.0,107680.0,1e-08]
[1756694809680,0.53271826,107690.0,107680.0,1e-08]
[1756694809896,0.69291826,107690.0,107680.0,1e-08]
[1756694811832,0.19271826,107690.0,107680.0,1e-08]
[1756694812057,0.35283826,107690.0,107680.0,1e-08]
[1756694812527,0.6883919,107690.0,107680.0,1e-08]
[1756694812701,1.11668822,107690.0,107680.0,1e-08]
[1756694812905,1.0283919,107690.0,107680.0,1e-08]
[1756694814849,0.69287826,107690.0,107680.0,1e-08]
[1756694815052,0.53271826,107690.0,107680.0,1e-08]
[1756694815253,0.69287826,107690.0,107680.0,1e-08]
[1756694817895,1.0284319,107690.0,107680.0,1e-08]
[1756694818516,0.53271826,107690.0,107680.0,1e-08]
[1756694818724,0.35283826,107690.0,107680.0,1e-08]
[1756694820725,0.35279826,107690.0,107680.0,1e-08]
[1756694821628,0.34879826,107690.0,107680.0,1e-08]
[1756694822070,0.35279826,107690.0,107680.0,1e-08]
[1756694822287,0.34979826,107690.0,107680.0,1e-08]
[1756694822516,0.35279826,107690.0,107680.0,1e-08]
[1756694823199,0.34979826,107690.0,107680.0,1e-08]
[1756694823425,0.35179826,107690.0,107680.0,1e-08]
[1756694823837,0.34779826,107690.0,107680.0,1e-08]
[1756694824048,0.34979826,107690.0,107680.0,1e-08]
[1756694824279,0.6853519,107690.0,107680.0,1e-08]
[1756694824481,0.34979826,107690.0,107680.0,1e-08]
[1756694824628,0.6853519,107690.0,107680.0,1e-08]
[1756694828019,1.04442262,107690.0,107680.0,1e-08]
[1756694828599,1.15834145,107690.0,107680.0,1e-08]
[1756694830749,1.18625645,107690.0,107680.0,1e-08]
[1756694832812,0.83127209,107690.0,107680.0,1e-08]
[1756694832954,1.16682573,107690.0,107680.0,1e-08]
[1756694833145,1.61042573,107690.0,107680.0,1e-08]
[1756694835092,1.61062573,107690.0,107680.0,1e-08]
[1756694835294,1.45070573,107690.0,107680.0,1e-08]
[1756694835449,1.61062573,107690.0,107680.0,1e-08]
[1756694836529,1.11515209,107690.0,107680.0,1e-08]
[1756694836730,1.13323826,107690.0,107680.0,1e-08]
[1756694836979,1.4687919,107690.0,107680.0,1e-08]
[1756694837402,0.97331826,107690.0,107680.0,1e-08]
[1756694837613,0.63331826,107690.0,107680.0,1e-08]
[1756694837825,0.97331826,107690.0,107680.0,1e-08]
[1756694838036,0.63331826,107690.0,107680.0,1e-08]
[1756694838460,0.18971826,107690.0,107680.0,1e-08]
[1756694838648,0.34971826,107690.0,107680.0,1e-08]
[1756694839111,0.18971826,107690.0,107680.0,1e-08]
[1756694839327,0.34967826,107690.0,107680.0,1e-08]
[1756694842540,0.18971826,107690.0,107680.0,1e-08]
[1756694842918,0.34959826,107690.0,107680.0,1e-08]
[1756694843335,0.18971826,107690.0,107680.0,0.43085535]
[1756694843540,0.18971826,107690.0,107680.0,0.42853366]
[1756694843754,0.18971826,107690.0,107680.0,0.09298002]
[1756694844156,0.18771826,107690.0,107680.0,0.09298002]
[1756694844630,0.18971826,107690.0,107680.0,0.09298002]
[1756694845000,0.18571826,107690.0,107680.0,0.09298002]
[1756694845383,0.18771826,107690.0,107680.0,0.09298002]
[1756694847245,0.18771826,107690.0,107680.0,1e-08]
[1756694848669,0.5232719,107690.0,107680.0,1e-08]
[1756694849028,0.18573551,107680.0,107670.0,0.20021169]
[1756694849232,0.68112915,107680.0,107670.0,0.20021169]
[1756694850718,0.70904215,107680.0,107670.0,0.20021169]
[1756694850942,0.70904215,107680.0,107670.0,0.19521169]
[1756694852836,0.71104215,107680.0,107670.0,0.19521169]
[1756694853464,0.21764851,107680.0,107670.0,0.19521169]
[1756694853668,0.37728851,107680.0,107670.0,0.19521169]
[1756694854511,0.21764851,107680.0,107670.0,0.19521169]
[1756694854733,0.18973551,107680.0,107670.0,0.98346534]
[1756694854939,0.17262512,107680.0,107670.0,0.98346534]
[1756694855326,0.17462512,107680.0,107670.0,0.98346534]
[1756694855757,0.17262512,107680.0,107670.0,0.98346534]
[1756694856186,0.17162512,107680.0,107670.0,0.98346534]
[1756694856572,0.17262512,107680.0,107670.0,0.98346534]
[1756694858027,0.17262512,107680.0,107670.0,0.6479117]
[1756694858236,0.17262512,107680.0,107670.0,0.4881917]
[1756694858444,0.17262512,107680.0,107670.0,0.6481517]
[1756694859396,0.17262512,107680.0,107670.0,0.65741145]
[1756694860037,0.17262512,107680.0,107670.0,0.68516014]
[1756694860238,0.17262512,107680.0,107670.0,1.02071378]
[1756694860670,0.17262512,107680.0,107670.0,0.68516014]
[1756694861440,0.17262512,107680.0,107670.0,0.32520014]
[1756694861651,0.17262512,107680.0,107670.0,0.48508014]
[1756694862246,0.17262512,107680.0,107670.0,0.32520014]
[1756694862462,0.17493254,107680.0,107670.0,0.36431144]
[1756694862596,0.17493254,107680.0,107670.0,0.20447144]
[1756694868667,0.17262512,107680.0,107670.0,0.20447144]
[1756694868889,0.17262512,107680.0,107670.0,0.63300509]
[1756694869059,0.17262512,107680.0,107670.0,0.66075378]
[1756694869060,0.15751417,107680.0,107670.0,0.66075378]
[1756694870429,0.15751417,107680.0,107670.0,0.88215378]
[1756694871678,0.15651417,107680.0,107670.0,0.88215378]
[1756694872282,0.15551417,107680.0,107670.0,0.88215378]
[1756694873209,0.15551417,107680.0,107670.0,0.54660014]
[1756694873431,0.15551417,107680.0,107670.0,0.70672014]
[1756694875718,0.49106781,107680.0,107670.0,0.20447144]
[1756694875894,0.49106781,107680.0,107670.0,0.19521169]
[1756694876109,0.65118781,107680.0,107670.0,0.19521169]
[1756694876312,0.31563417,107680.0,107670.0,0.19521169]
[1756694876535,0.67909981,107680.0,107670.0,0.19521169]
[1756694876937,0.68009981,107680.0,107670.0,0.19521169]
[1756694877127,0.68109981,107680.0,107670.0,0.19521169]
[1756694877331,0.18542617,107680.0,107670.0,0.19521169]
[1756694877534,0.15751417,107680.0,107670.0,1.1594981]
[1756694877735,0.18773551,107680.0,107670.0,0.90460421]
[1756694877931,0.18773551,107680.0,107670.0,1.57571149]
[1756694877932,0.002,107680.0,107670.0,1.57571149]
[1756694878188,0.002,107680.0,107670.0,1.60346018]
[1756694878307,0.001,107680.0,107670.0,1.60346018]
[1756694878512,0.002,107680.0,107670.0,1.61204018]
[1756694878721,0.001,107680.0,107670.0,1.61204018]
[1756694878924,0.18571938,107690.0,107680.0,0.18573551]
[1756694878925,0.17161066,107690.0,107680.0,0.18573551]
[1756694879136,0.28313212,107700.0,107680.0,0.97450916]
[1756694879336,0.28313212,107700.0,107690.0,0.09530148]
[1756694880310,0.28313212,107700.0,107690.0,0.64011487]
[1756694880531,0.28313212,107700.0,107690.0,0.7091934]
[1756694880749,0.28313212,107700.0,107690.0,0.8693934]
[1756694880920,0.28313212,107700.0,107690.0,0.53383976]
[1756694881262,0.27384707,107700.0,107690.0,1.20511166]
[1756694881680,0.27484707,107700.0,107690.0,1.0193934]
[1756694881985,0.27384707,107700.0,107690.0,0.68383976]
[1756694882195,0.27484707,107700.0,107690.0,0.68383976]
[1756694882421,0.27484707,107700.0,107690.0,0.71158845]
[1756694882636,0.27384707,107700.0,107690.0,0.71158845]
[1756694882982,0.27384707,107700.0,107690.0,0.71258845]
[1756694884431,0.27384707,107700.0,107690.0,0.89830671]
[1756694884610,0.27384707,107700.0,107690.0,1.23386035]
[1756694884907,0.27384707,107700.0,107690.0,0.88794209]
[1756694885138,0.27384707,107700.0,107690.0,1.04798209]
[1756694885673,0.27384707,107700.0,107690.0,0.55238845]
[1756694885876,0.27384707,107700.0,107690.0,0.71234845]
[1756694887229,0.27384707,107700.0,107690.0,0.56165962]
[1756694887428,0.27384707,107700.0,107690.0,0.71254845]
[1756694888261,0.60940071,107700.0,107690.0,0.36025975]
[1756694888460,0.60940071,107700.0,107690.0,0.52049975]
[1756694889091,0.60940071,107700.0,107690.0,0.37045975]
[1756694889296,0.27384707,107700.0,107690.0,0.20925975]
[1756694889433,0.27384707,107700.0,107690.0,0.36945975]
[1756694889638,0.27584707,107700.0,107690.0,0.36945975]
[1756694890866,0.61140071,107700.0,107690.0,0.00925975]
[1756694891078,1.44715435,107700.0,107690.0,0.00925975]
[1756694891280,0.18573551,107680.0,107670.0,0.26661169]
[1756694891487,0.52128915,107680.0,107670.0,0.4575317]
[1756694891717,0.52128915,107680.0,107670.0,0.20403169]
[1756694891932,0.52128915,107680.0,107670.0,0.36455169]
[1756694892532,0.52128915,107680.0,107670.0,0.36555169]
[1756694892767,0.52128915,107680.0,107670.0,0.36755169]
[1756694892975,0.52128915,107680.0,107670.0,0.35873169]
[1756694893183,0.53051101,107680.0,107670.0,0.35873169]
[1756694893564,0.53051101,107680.0,107670.0,0.35673169]
[1756694893784,0.53051101,107680.0,107670.0,0.35573169]
[1756694894771,0.53151101,107680.0,107670.0,0.35573169]
[1756694895463,0.52228915,107680.0,107670.0,0.35573169]
[1756694895855,0.18773551,107680.0,107670.0,0.35573169]
[1756694897133,0.19724198,107680.0,107670.0,0.35573169]
[1756694897338,0.53279562,107680.0,107670.0,0.19521169]
[1756694897546,0.53279562,107680.0,107670.0,0.35557169]
[1756694898181,0.53279562,107680.0,107670.0,0.35553169]
[1756694899092,0.53279562,107680.0,107670.0,0.19521169]
[1756694899295,0.53279562,107680.0,107670.0,0.35553169]
[1756694901271,0.87279562,107680.0,107670.0,0.19521169]
[1756694901472,1.03311562,107680.0,107670.0,0.19521169]
[1756694901671,0.029914,107680.0,107670.0,1.75645174]
[1756694901880,0.002,107680.0,107670.0,1.6208981]
[1756694902245,0.18773551,107680.0,107670.0,1.1084117]
[1756694902444,0.18773551,107680.0,107670.0,0.3684117]
[1756694902644,0.18673551,107680.0,107670.0,0.7287717]
[1756694902772,0.52228915,107680.0,107670.0,0.7199517]
[1756694903222,0.52328915,107680.0,107670.0,0.7199517]
[1756694903426,0.18773551,107680.0,107670.0,0.5199517]
[1756694903580,0.18773551,107680.0,107670.0,0.5200317]
[1756694903581,0.52328915,107680.0,107670.0,0.5200317]
[1756694903786,0.52228915,107680.0,107670.0,0.5200317]
[1756694904023,0.52328915,107680.0,107670.0,0.5200317]
[1756694904626,0.52228915,107680.0,107670.0,0.5200317]
[1756694905302,0.52228915,107680.0,107670.0,0.5220317]
[1756694905508,0.18673551,107680.0,107670.0,0.5200317]
[1756694905863,0.18773551,107680.0,107670.0,0.5200317]
[1756694906062,0.18673551,107680.0,107670.0,0.5200317]
[1756694906517,0.18586251,107680.0,107670.0,0.5200317]
[1756694907065,0.18486251,107680.0,107670.0,0.5200317]
[1756694907672,0.52041615,107680.0,107670.0,0.5200317]
[1756694908110,0.51941615,107680.0,107670.0,0.5200317]
[1756694908448,0.18486251,107680.0,107670.0,0.5200317]
[1756694908663,0.18386251,107680.0,107670.0,0.5200317]
[1756694909063,0.18486251,107680.0,107670.0,0.5200317]
[1756694909474,0.18586251,107680.0,107670.0,0.5200317]
[1756694909848,0.18486251,107680.0,107670.0,0.5200317]
[1756694910212,0.18586251,107680.0,107670.0,0.5200317]
[1756694911580,0.18586251,107680.0,107670.0,0.70578446]
[1756694912172,0.18586251,107680.0,107670.0,0.90578446]
[1756694913182,0.18386251,107680.0,107670.0,0.7200317]
[1756694913540,0.18386251,107680.0,107670.0,0.7210317]
[1756694918034,0.18386251,107680.0,107670.0,0.7207517]
[1756694918235,0.51941615,107680.0,107670.0,0.7207517]
[1756694918973,0.18386251,107680.0,107670.0,0.7197517]